fUSD/lending_fUSD_20241222
["ID","MTS","AMOUNT","RATE_DAILY","PERIOD"]
[346344648,1734901832918,-2566.16,0.0001841,2]
[346344650,1734901832927,-10769.0,0.00018422,2]
[346344652,1734901832935,-169.55,0.00018457,2]
[346344654,1734901832945,-250.0,0.00018493,2]
[346344656,1734901832954,-150.0,0.00018578,2]
[346344658,1734901832963,-165.26,0.00018598,2]
[346344660,1734901832972,-640.38,0.00018642,2]
[346344662,1734901832981,-1222.89,0.00018853,2]
[346344664,1734901832990,-300.0,0.00018878,2]
[346344666,1734901833000,-500.0,0.00018932,2]
[346344668,1734901833009,-13878.05268899,0.00018978,2]
[346344670,1734901833018,-1210.7534,0.00018978,2]
[346344672,1734901833028,-1000.0,0.00018999,2]
[346344674,1734901833037,-10000.0,0.00019,2]
[346344676,1734901833047,-401.46,0.00019,2]
[346344678,1734901833056,-150.0,0.00019,2]
[346344680,1734901833066,-158.94184706,0.00019024,2]
[346344682,1734901833075,-13878.0526889,0.00019047,2]
[346344684,1734901833085,-2424.06716175,0.00019078,2]
[346344686,1734901833095,-482.33891743,0.00019078,2]
[346344688,1734901833104,-4578.2839,0.00019078,2]
[346344690,1734901833113,-639.5577,0.00019078,2]
[346344691,1734901833123,-10743.3,0.00019078,2]
[346344693,1734901833133,-89879.6672,0.00019078,2]
[346344695,1734901833143,-55555.0,0.00019078,2]
[346344697,1734901833152,-150.0,0.00019078,2]
[346344699,1734901833162,-397.77,0.00019078,2]
[346344701,1734901833171,-4552.77920629,0.000191,2]
[346344703,1734901833180,-4552.7792061,0.000191,2]
[346344705,1734901833189,-4552.7792061,0.000191,2]
[346344707,1734901833199,-4552.7792061,0.000191,2]
[346344709,1734901833208,-4552.7792061,0.00019109,2]
[346344714,1734901833431,-13878.0526889,0.00019116,2]
[346344715,1734901833442,-225.0,0.00019124,2]
[346344716,1734901833452,-2424.0671617,0.00019136,2]
[346344717,1734901833461,-4552.7792061,0.00019141,2]
[346344718,1734901833471,-977.18,0.00019143,2]
[346344719,1734901833481,-151.24,0.00019168,2]
[346344720,1734901833490,-4552.7792061,0.00019174,2]
[346344721,1734901833500,-7500.0,0.00019177,2]
[346344722,1734901833510,-500.0,0.00019177,2]
[346344723,1734901833520,-283.31190351,0.00019177,2]
[346344724,1734901833532,-592.5200984,0.00019177,2]
[346344725,1734901833542,-500.0,0.00019177,2]
[346344726,1734901833551,-375.71423491,0.00019177,2]
[346344727,1734901833561,-500.0,0.00019177,2]
[346344728,1734901833571,-500.0,0.00019177,2]
[346344729,1734901833581,-500.0,0.00019177,2]
[346344730,1734901833590,-500.0,0.00019177,2]
[346344731,1734901833600,-500.0,0.00019177,2]
[346344732,1734901833609,-172.95574003,0.00019177,2]
[346344733,1734901833619,-500.0,0.00019178,2]
[346344734,1734901833628,-503.01775092,0.00019178,2]
[346344735,1734901833638,-385.30744375,0.00019178,2]
[346344736,1734901833648,-249.24069115,0.00019178,2]
[346344737,1734901833659,-500.0,0.00019178,2]
[346344738,1734901833668,-500.0,0.00019178,2]
[346344739,1734901833678,-500.0,0.00019178,2]
[346344740,1734901833689,-506.4626508,0.00019178,2]
[346344741,1734901833708,-500.0,0.00019178,2]
[346344742,1734901833717,-500.0,0.00019178,2]
[346344743,1734901833727,-500.0,0.00019178,2]
[346344744,1734901833739,-500.0,0.00019178,2]
[346344745,1734901833748,-500.0,0.00019178,2]
[346344746,1734901833758,-500.0,0.00019178,2]
[346344747,1734901833768,-500.0,0.00019178,2]
[346344748,1734901833784,-453.99146676,0.00019178,2]
[346344749,1734901833795,-500.0,0.00019178,2]
[346344750,1734901833804,-335.93777335,0.00019178,2]
[346344751,1734901833814,-500.0,0.00019178,2]
[346344752,1734901833825,-500.0,0.00019178,2]
[346344753,1734901833834,-219.21903106,0.00019178,2]
[346344754,1734901833845,-500.0,0.00019178,2]
[346344755,1734901833854,-500.0,0.00019178,2]
[346344756,1734901833864,-500.0,0.00019178,2]
[346344757,1734901833874,-500.0,0.00019178,2]
[346344758,1734901833884,-500.0,0.00019178,2]
[346344759,1734901833894,-500.0,0.00019178,2]
[346344760,1734901833903,-500.0,0.00019178,2]
[346344761,1734901833913,-500.0,0.00019178,2]
[346344762,1734901833922,-500.0,0.00019178,2]
[346344763,1734901833930,-500.0,0.00019178,2]
[346344764,1734901833942,-500.0,0.00019178,2]
[346344765,1734901833952,-500.0,0.00019178,2]
[346344766,1734901833962,-500.0,0.00019178,2]
[346344767,1734901833972,-500.0,0.00019178,2]
[346344768,1734901833982,-500.0,0.00019178,2]
[346344769,1734901833991,-500.0,0.00019178,2]
[346344770,1734901834001,-500.0,0.00019178,2]
[346344771,1734901834010,-500.0,0.00019178,2]
[346344772,1734901834020,-500.0,0.00019178,2]
[346344773,1734901834031,-500.0,0.00019178,2]
[346344774,1734901834040,-500.0,0.00019178,2]
[346344775,1734901834050,-500.0,0.00019178,2]
[346344776,1734901834060,-516.29462638,0.00019178,2]
[346344777,1734901834069,-924.841852,0.00019178,2]
[346344778,1734901834079,-500.0,0.00019178,2]
[346344779,1734901834089,-163.663649,0.00019178,2]
[346344780,1734901834098,-1579.556001,0.00019178,2]
[346344781,1734901834108,-500.0,0.00019178,2]
[346344782,1734901834118,-500.0,0.00019178,2]
[346344783,1734901834128,-500.0,0.00019178,2]
[346344784,1734901834138,-500.0,0.00019178,2]
[346344785,1734901834147,-500.0,0.00019178,2]
[346344786,1734901834157,-507.86316358,0.00019178,2]
[346344787,1734901834167,-500.0,0.00019178,2]
[346344788,1734901834176,-502.11499341,0.00019178,2]
[346344789,1734901834185,-500.0,0.00019178,2]
[346344790,1734901834195,-324.61478509,0.00019178,2]
[346344791,1734901834205,-500.0,0.00019178,2]
[346344792,1734901834215,-500.0,0.00019178,2]
[346344793,1734901834225,-571.53,0.00019178,2]
[346344794,1734901834235,-500.0,0.00019178,2]
[346344795,1734901834244,-500.0,0.00019178,2]
[346344796,1734901834254,-500.0,0.00019178,2]
[346344797,1734901834264,-500.0,0.00019178,2]
[346344798,1734901834273,-500.0,0.00019178,2]
[346344799,1734901834284,-500.0,0.00019178,2]
[346344800,1734901834294,-500.0,0.00019178,2]
[346344801,1734901834304,-599.65369905,0.00019178,2]
[346344802,1734901834314,-500.0,0.00019178,2]
[346344803,1734901834324,-500.0,0.00019178,2]
[346344804,1734901834333,-500.0,0.00019178,2]
[346344805,1734901834343,-347.80021437,0.00019178,2]
[346344806,1734901834353,-500.0,0.00019178,2]
[346344807,1734901834363,-500.0,0.00019178,2]
[346344808,1734901834373,-500.0,0.00019178,2]
[346344809,1734901834382,-500.0,0.00019178,2]
[346344810,1734901834392,-500.0,0.00019178,2]
[346344811,1734901834402,-500.0,0.00019178,2]
[346344812,1734901834411,-500.0,0.00019178,2]
[346344813,1734901834420,-500.0,0.00019178,2]
[346344814,1734901834429,-500.0,0.00019178,2]
[346344815,1734901834439,-500.0,0.00019178,2]
[346344816,1734901834450,-500.0,0.00019178,2]
[346344817,1734901834459,-500.0,0.00019178,2]
[346344818,1734901834469,-500.0,0.00019178,2]
[346344819,1734901834478,-500.0,0.00019178,2]
[346344820,1734901834487,-500.0,0.00019178,2]
[346344821,1734901834497,-500.0,0.00019178,2]
[346344822,1734901834507,-500.0,0.00019178,2]
[346344823,1734901834516,-500.0,0.00019178,2]
[346344824,1734901834525,-500.0,0.00019178,2]
[346344825,1734901834536,-500.0,0.00019178,2]
[346344826,1734901834545,-500.0,0.00019178,2]
[346344827,1734901834554,-500.0,0.00019178,2]
[346344828,1734901834563,-500.0,0.00019178,2]
[346344829,1734901834572,-500.0,0.00019178,2]
[346344830,1734901834582,-500.0,0.00019178,2]
[346344831,1734901834591,-500.0,0.00019178,2]
[346344832,1734901834600,-500.0,0.00019178,2]
[346344833,1734901834610,-500.0,0.00019178,2]
[346344834,1734901834619,-500.0,0.00019178,2]
[346344835,1734901834629,-500.0,0.00019178,2]
[346344836,1734901834638,-500.0,0.00019178,2]
[346344837,1734901834648,-500.0,0.00019178,2]
[346344838,1734901834657,-500.0,0.00019178,2]
[346344839,1734901834666,-500.0,0.00019178,2]
[346344840,1734901834675,-376.63918087,0.00019178,2]
[346344841,1734901834684,-500.0,0.00019178,2]
[346344842,1734901834697,-500.0,0.00019178,2]
[346344843,1734901834706,-500.0,0.00019178,2]
[346344844,1734901834715,-500.0,0.00019178,2]
[346344845,1734901834724,-500.0,0.00019178,2]
[346344846,1734901834735,-500.0,0.00019178,2]
[346344847,1734901834744,-500.0,0.00019178,2]
[346344848,1734901834753,-500.0,0.00019178,2]
[346344849,1734901834763,-544.6,0.00019178,2]
[346344850,1734901834774,-500.0,0.00019178,2]
[346344851,1734901834787,-567.31921888,0.00019178,2]
[346344852,1734901834796,-500.0,0.00019178,2]
[346344853,1734901834805,-500.0,0.00019178,2]
[346344854,1734901834814,-500.0,0.00019178,2]
[346344855,1734901834824,-500.0,0.00019178,2]
[346344856,1734901834833,-500.0,0.00019178,2]
[346344857,1734901834842,-500.0,0.00019178,2]
[346344858,1734901834851,-500.0,0.00019178,2]
[346344859,1734901834860,-500.0,0.00019178,2]
[346344860,1734901834869,-500.0,0.00019178,2]
[346344861,1734901834878,-500.0,0.00019178,2]
[346344862,1734901834887,-500.0,0.00019178,2]
[346344863,1734901834896,-500.0,0.00019178,2]
[346344864,1734901834905,-500.0,0.00019178,2]
[346344865,1734901834914,-500.0,0.00019178,2]
[346344866,1734901834923,-500.0,0.00019178,2]
[346344867,1734901834931,-500.0,0.00019178,2]
[346344868,1734901834940,-506.05518069,0.00019178,2]
[346344869,1734901834950,-1758.08,0.00019178,2]
[346344870,1734901834959,-500.0,0.00019178,2]
[346344871,1734901834967,-500.0,0.00019178,2]
[346344872,1734901834977,-500.0,0.00019178,2]
[346344873,1734901834986,-500.0,0.00019178,2]
[346344874,1734901834995,-500.0,0.00019178,2]
[346344875,1734901835004,-500.0,0.00019178,2]
[346344876,1734901835013,-500.0,0.00019178,2]
[346344877,1734901835022,-500.0,0.00019178,2]
[346344878,1734901835032,-500.0,0.00019178,2]
[346344879,1734901835041,-500.0,0.00019178,2]
[346344880,1734901835050,-500.0,0.00019178,2]
[346344881,1734901835059,-500.0,0.00019178,2]
[346344882,1734901835068,-500.0,0.00019178,2]
[346344883,1734901835077,-500.0,0.00019178,2]
[346344884,1734901835087,-500.0,0.00019178,2]
[346344885,1734901835095,-181.32,0.00019178,2]
[346344886,1734901835104,-500.0,0.00019178,2]
[346344887,1734901835113,-500.0,0.00019178,2]
[346344888,1734901835122,-630.41858667,0.00019178,2]
[346344889,1734901835135,-500.0,0.00019178,2]
[346344890,1734901835148,-500.0,0.00019178,2]
[346344891,1734901835160,-500.0,0.00019178,2]
[346344892,1734901835172,-500.0,0.00019178,2]
[346344893,1734901835183,-500.0,0.00019178,2]
[346344894,1734901835195,-512.18,0.00019178,2]
[346344895,1734901835208,-500.0,0.00019178,2]
[346344896,1734901835220,-336.26641233,0.00019178,2]
[346344897,1734901835233,-268.10046761,0.00019178,2]
[346344898,1734901835246,-500.0,0.00019178,2]
[346344899,1734901835259,-500.0,0.00019178,2]
[346344900,1734901835271,-500.0,0.00019178,2]
[346344901,1734901835283,-500.0,0.00019178,2]
[346344902,1734901835293,-500.0,0.00019178,2]
[346344903,1734901835304,-500.0,0.00019178,2]
[346344904,1734901835317,-500.0,0.00019178,2]
[346344905,1734901835329,-500.0,0.00019178,2]
[346344906,1734901835341,-500.0,0.00019178,2]
[346344907,1734901835353,-500.0,0.00019178,2]
[346344908,1734901835365,-500.0,0.00019178,2]
[346344909,1734901835378,-500.0,0.00019178,2]
[346344910,1734901835390,-500.0,0.00019178,2]
[346344911,1734901835401,-500.0,0.00019178,2]
[346344912,1734901835415,-641.27,0.00019178,2]
[346344913,1734901835427,-500.0,0.00019178,2]
[346344914,1734901835440,-500.0,0.00019178,2]
[346344915,1734901835451,-500.0,0.00019178,2]
[346344916,1734901835463,-500.0,0.00019178,2]
[346344917,1734901835474,-500.0,0.00019178,2]
[346344918,1734901835487,-500.0,0.00019178,2]
[346344919,1734901835501,-500.0,0.00019178,2]
[346344920,1734901835512,-500.0,0.00019178,2]
[346344921,1734901835524,-500.0,0.00019178,2]
[346344922,1734901835536,-500.0,0.00019178,2]
[346344923,1734901835546,-500.0,0.00019178,2]
[346344924,1734901835557,-500.0,0.00019178,2]
[346344925,1734901835569,-500.0,0.00019178,2]
[346344926,1734901835583,-500.0,0.00019178,2]
[346344927,1734901835595,-500.0,0.00019178,2]
[346344928,1734901835606,-500.0,0.00019178,2]
[346344929,1734901835616,-500.0,0.00019178,2]
[346344930,1734901835627,-661.52,0.00019178,2]
[346344931,1734901835639,-567.47,0.00019178,2]
[346344932,1734901835653,-500.0,0.00019178,2]
[346344933,1734901835664,-860.2,0.00019178,2]
[346344934,1734901835675,-589.62,0.00019178,2]
[346344935,1734901835685,-312.6,0.00019178,2]
[346344936,1734901835695,-435.20973602,0.00019178,2]
[346344937,1734901835710,-500.0,0.00019178,2]
[346344938,1734901835721,-500.0,0.00019178,2]
[346344939,1734901835733,-500.0,0.00019178,2]
[346344940,1734901835747,-500.0,0.00019178,2]
[346344941,1734901835759,-500.0,0.00019178,2]
[346344942,1734901835769,-500.0,0.00019178,2]
[346344943,1734901835783,-500.0,0.00019178,2]
[346344944,1734901835794,-500.0,0.00019178,2]
[346344945,1734901835805,-500.0,0.00019178,2]
[346344946,1734901835818,-500.0,0.00019178,2]
[346344947,1734901835829,-500.0,0.00019178,2]
[346344948,1734901835840,-500.0,0.00019178,2]
[346344949,1734901835851,-500.0,0.00019178,2]
[346344950,1734901835862,-648.03,0.00019178,2]
[346344951,1734901835873,-500.0,0.00019178,2]
[346344952,1734901835883,-500.0,0.00019178,2]
[346344953,1734901835894,-500.0,0.00019178,2]
[346344954,1734901835906,-500.0,0.00019178,2]
[346344955,1734901835917,-500.0,0.00019178,2]
[346344956,1734901835927,-500.0,0.00019178,2]
[346344957,1734901835938,-500.0,0.00019178,2]
[346344958,1734901835950,-500.0,0.00019178,2]
[346344959,1734901835961,-500.0,0.00019178,2]
[346344960,1734901835971,-500.0,0.00019178,2]
[346344961,1734901835982,-365.78664795,0.00019178,2]
[346344962,1734901835993,-500.0,0.00019178,2]
[346344963,1734901836004,-1116.29,0.00019178,2]
[346344964,1734901836015,-500.0,0.00019178,2]
[346344965,1734901836025,-500.0,0.00019178,2]
[346344966,1734901836037,-500.0,0.00019178,2]
[346344967,1734901836048,-500.0,0.00019178,2]
[346344968,1734901836059,-260.02105065,0.00019178,2]
[346344969,1734901836069,-500.0,0.00019178,2]
[346344970,1734901836081,-500.0,0.00019178,2]
[346344971,1734901836092,-500.0,0.00019178,2]
[346344972,1734901836102,-749.99,0.00019178,2]
[346344973,1734901836114,-500.0,0.00019178,2]
[346344974,1734901836125,-500.0,0.00019178,2]
[346344975,1734901836136,-500.0,0.00019178,2]
[346344976,1734901836146,-599.06,0.00019178,2]
[346344977,1734901836157,-500.0,0.00019178,2]
[346344978,1734901836168,-500.0,0.00019178,2]
[346344979,1734901836179,-500.0,0.00019178,2]
[346344980,1734901836190,-486.38629357,0.00019178,2]
[346344981,1734901836201,-500.0,0.00019178,2]
[346344982,1734901836212,-500.0,0.00019178,2]
[346344983,1734901836224,-500.0,0.00019178,2]
[346344984,1734901836235,-500.0,0.00019178,2]
[346344985,1734901836246,-500.0,0.00019178,2]
[346344986,1734901836257,-500.0,0.00019178,2]
[346344987,1734901836268,-500.0,0.00019178,2]
[346344988,1734901836279,-500.0,0.00019178,2]
[346344989,1734901836290,-500.0,0.00019178,2]
[346344990,1734901836301,-500.0,0.00019178,2]
[346344991,1734901836312,-500.0,0.00019178,2]
[346344992,1734901836323,-500.0,0.00019178,2]
[346344993,1734901836334,-500.0,0.00019178,2]
[346344994,1734901836345,-500.0,0.00019178,2]
[346344995,1734901836356,-348.68755936,0.00019178,2]
[346344996,1734901836367,-500.0,0.00019178,2]
[346344997,1734901836378,-500.0,0.00019178,2]
[346344998,1734901836390,-500.0,0.00019178,2]
[346344999,1734901836400,-819.9,0.00019178,2]
[346345000,1734901836411,-500.0,0.00019178,2]
[346345001,1734901836422,-500.0,0.00019178,2]
[346345002,1734901836433,-500.0,0.00019178,2]
[346345003,1734901836444,-500.0,0.00019178,2]
[346345004,1734901836455,-500.0,0.00019178,2]
[346345005,1734901836467,-500.0,0.00019178,2]
[346345006,1734901836478,-500.0,0.00019178,2]
[346345007,1734901836488,-500.0,0.00019178,2]
[346345008,1734901836499,-500.0,0.00019178,2]
[346345009,1734901836510,-500.0,0.00019178,2]
[346345010,1734901836521,-500.0,0.00019178,2]
[346345011,1734901836533,-500.0,0.00019178,2]
[346345012,1734901836545,-500.0,0.00019178,2]
[346345013,1734901836557,-500.0,0.00019178,2]
[346345014,1734901836568,-500.0,0.00019178,2]
[346345015,1734901836579,-500.0,0.00019178,2]
[346345016,1734901836590,-500.0,0.00019178,2]
[346345017,1734901836601,-500.0,0.00019178,2]
[346345018,1734901836613,-500.0,0.00019178,2]
[346345019,1734901836624,-500.0,0.00019178,2]
[346345020,1734901836635,-500.0,0.00019178,2]
[346345021,1734901836646,-500.0,0.00019178,2]
[346345022,1734901836658,-500.0,0.00019178,2]
[346345023,1734901836669,-500.0,0.00019178,2]
[346345024,1734901836680,-547.39,0.00019178,2]
[346345025,1734901836691,-500.0,0.00019178,2]
[346345026,1734901836705,-500.0,0.00019178,2]
[346345027,1734901836716,-646.85985028,0.00019178,2]
[346345028,1734901836727,-500.0,0.00019178,2]
[346345029,1734901836738,-500.0,0.00019178,2]
[346345030,1734901836750,-500.0,0.00019178,2]
[346345031,1734901836761,-461.22319559,0.00019178,2]
[346345032,1734901836772,-500.0,0.00019178,2]
[346345033,1734901836783,-500.0,0.00019178,2]
[346345034,1734901836794,-500.0,0.00019178,2]
[346345035,1734901836805,-160.03283671,0.00019178,2]
[346345036,1734901836816,-181.40678602,0.00019178,2]
[346345037,1734901836828,-500.0,0.00019178,2]
[346345038,1734901836840,-500.0,0.00019178,2]
[346345039,1734901836851,-500.0,0.00019178,2]
[346345040,1734901836862,-500.0,0.00019178,2]
[346345041,1734901836873,-500.0,0.00019178,2]
[346345042,1734901836884,-500.0,0.00019178,2]
[346345043,1734901836896,-500.0,0.00019178,2]
[346345044,1734901836907,-500.0,0.00019178,2]
[346345045,1734901836918,-500.0,0.00019178,2]
[346345046,1734901836930,-500.0,0.00019178,2]
[346345047,1734901836941,-500.0,0.00019178,2]
[346345048,1734901836953,-500.0,0.00019178,2]
[346345049,1734901836964,-500.0,0.00019178,2]
[346345050,1734901836976,-498.58349188,0.00019178,2]
[346345051,1734901836988,-500.0,0.00019178,2]
[346345052,1734901837000,-1608.43,0.00019178,2]
[346345053,1734901837011,-500.0,0.00019178,2]
[346345054,1734901837022,-1380.36,0.00019178,2]
[346345055,1734901837034,-500.0,0.00019178,2]
[346345056,1734901837044,-500.0,0.00019178,2]
[346345057,1734901837056,-1993.56,0.00019178,2]
[346345058,1734901837066,-500.0,0.00019178,2]
[346345059,1734901837077,-858.09,0.00019178,2]
[346345060,1734901837089,-500.0,0.00019178,2]
[346345061,1734901837100,-500.0,0.00019178,2]
[346345062,1734901837111,-500.0,0.00019178,2]
[346345063,1734901837120,-500.0,0.00019178,2]
[346345064,1734901837130,-434.22474073,0.00019178,2]
[346345065,1734901837139,-500.0,0.00019178,2]
[346345066,1734901837149,-500.0,0.00019178,2]
[346345067,1734901837348,-656.73,0.00019178,2]
[346345068,1734901837431,-500.0,0.00019178,2]
[346345069,1734901837449,-11925.8,0.00019178,2]
[346345070,1734901837459,-500.0,0.00019178,2]
[346345071,1734901837468,-506.47,0.00019178,2]
[346345072,1734901837477,-689.41,0.00019178,2]
[346345073,1734901837487,-500.0,0.00019178,2]
[346345074,1734901837496,-500.0,0.00019178,2]
[346345075,1734901837505,-500.0,0.00019178,2]
[346345076,1734901837514,-669.76,0.00019178,2]
[346345077,1734901837524,-915.64,0.00019178,2]
[346345078,1734901837534,-500.0,0.00019178,2]
[346345079,1734901837543,-972.74,0.00019178,2]
[346345080,1734901837552,-2246.31,0.00019178,2]
[346345081,1734901837561,-272.63190286,0.00019178,2]
[346345082,1734901837570,-1175.4,0.00019178,2]
[346345083,1734901837579,-500.0,0.00019178,2]
[346345084,1734901837589,-2553.33,0.00019178,2]
[346345085,1734901837598,-500.0,0.00019178,2]
[346345086,1734901837608,-1834.85,0.00019178,2]
[346345087,1734901837617,-615.99,0.00019178,2]
[346345088,1734901837626,-500.0,0.00019178,2]
[346345089,1734901837635,-1423.3,0.00019178,2]
[346345090,1734901837644,-500.0,0.00019178,2]
[346345091,1734901837653,-2498.88,0.00019178,2]
[346345092,1734901837662,-2972.85,0.00019178,2]
[346345093,1734901837672,-667.26,0.00019178,2]
[346345094,1734901837681,-3772.78,0.00019178,2]
[346345095,1734901837690,-500.0,0.00019178,2]
[346345096,1734901837699,-705.48,0.00019178,2]
[346345097,1734901837710,-500.0,0.00019178,2]
[346345098,1734901837720,-500.0,0.00019178,2]
[346345099,1734901837729,-12662.71,0.00019178,2]
[346345100,1734901837738,-30528.4,0.00019178,2]
[346345101,1734901837747,-1233.14,0.00019178,2]
[346345102,1734901837757,-502.52203485,0.00019178,2]
[346345103,1734901837766,-1886.84,0.00019178,2]
[346345104,1734901837775,-500.0,0.00019178,2]
[346345105,1734901837784,-504.02954351,0.00019178,2]
[346345106,1734901837796,-500.0,0.00019178,2]
[346345107,1734901837804,-1502.9,0.00019178,2]
[346345108,1734901837813,-500.0,0.00019178,2]
[346345109,1734901837822,-500.0,0.00019178,2]
[346345110,1734901837831,-500.0,0.00019178,2]
[346345111,1734901837840,-16290.47,0.00019178,2]
[346345112,1734901837849,-500.0,0.00019178,2]
[346345113,1734901837858,-365.10615018,0.00019178,2]
[346345114,1734901837867,-505.44367409,0.00019178,2]
[346345115,1734901837877,-431.58295367,0.00019178,2]
[346345116,1734901837886,-824.87,0.00019178,2]
[346345117,1734901837895,-2040.24,0.00019178,2]
[346345118,1734901837904,-500.0,0.00019178,2]
[346345119,1734901837914,-525.31718287,0.00019178,2]
[346345120,1734901837923,-500.0,0.00019178,2]
[346345121,1734901837932,-500.0,0.00019178,2]
[346345122,1734901837941,-1162.94,0.00019178,2]
[346345123,1734901837950,-500.0,0.00019178,2]
[346345124,1734901837959,-500.0,0.00019178,2]
[346345125,1734901837969,-1117.82,0.00019178,2]
[346345126,1734901837978,-895.87,0.00019178,2]
[346345127,1734901837987,-500.0,0.00019178,2]
[346345128,1734901837997,-1731.02,0.00019178,2]
[346345129,1734901838006,-500.0,0.00019178,2]
[346345131,1734901838017,-1832.72,0.00019178,2]
[346345132,1734901838026,-1589.7,0.00019178,2]
[346345133,1734901838035,-500.0,0.00019178,2]
[346345134,1734901838044,-500.0,0.00019178,2]
[346345135,1734901838054,-500.0,0.00019178,2]
[346345136,1734901838064,-624.82,0.00019178,2]
[346345138,1734901838074,-1321.44,0.00019178,2]
[346345139,1734901838082,-805.65,0.00019178,2]
[346345140,1734901838091,-3280.38,0.00019178,2]
[346345141,1734901838100,-500.0,0.00019178,2]
[346345142,1734901838109,-500.0,0.00019178,2]
[346345143,1734901838118,-8345.3,0.00019178,2]
[346345144,1734901838127,-875.39,0.00019178,2]
[346345146,1734901838136,-500.0,0.00019178,2]
[346345147,1734901838145,-500.0,0.00019178,2]
[346345148,1734901838155,-2234.33,0.00019178,2]
[346345149,1734901838164,-500.0,0.00019178,2]
[346345150,1734901838173,-500.0,0.00019178,2]
[346345151,1734901838182,-824.46,0.00019178,2]
[346345152,1734901838191,-500.0,0.00019178,2]
[346345154,1734901838200,-1077.48,0.00019178,2]
[346345156,1734901838209,-1949.77,0.00019178,2]
[346345157,1734901838218,-500.0,0.00019178,2]
[346345158,1734901838227,-1141.47,0.00019178,2]
[346345159,1734901838237,-500.0,0.00019178,2]
[346345160,1734901838246,-1630.06,0.00019178,2]
[346345161,1734901838255,-4650.73,0.00019178,2]
[346345162,1734901838264,-3610.82,0.00019178,2]
[346345163,1734901838273,-500.0,0.00019178,2]
[346345164,1734901838283,-17627.49,0.00019178,2]
[346345165,1734901838292,-2903.65,0.00019178,2]
[346345166,1734901838301,-500.0,0.00019178,2]
[346345167,1734901838310,-2467.05,0.00019178,2]
[346345168,1734901838319,-500.0,0.00019178,2]
[346345169,1734901838328,-500.0,0.00019178,2]
[346345170,1734901838337,-500.0,0.00019178,2]
[346345171,1734901838346,-1298.65,0.00019178,2]
[346345172,1734901838355,-500.0,0.00019178,2]
[346345173,1734901838364,-1885.87,0.00019178,2]
[346345174,1734901838373,-500.0,0.00019178,2]
[346345175,1734901838382,-1389.95,0.00019178,2]
[346345176,1734901838391,-1989.59,0.00019178,2]
[346345177,1734901838400,-585.61,0.00019178,2]
[346345178,1734901838410,-1538.1,0.00019178,2]
[346345179,1734901838419,-500.0,0.00019178,2]
[346345180,1734901838428,-6630.77,0.00019178,2]
[346345181,1734901838437,-4563.96,0.00019178,2]
[346345182,1734901838446,-2906.25,0.00019178,2]
[346345183,1734901838455,-1136.51,0.00019178,2]
[346345184,1734901838465,-638.49,0.00019178,2]
[346345185,1734901838474,-500.0,0.00019178,2]
[346345186,1734901838483,-500.0,0.00019178,2]